bitfinex-derivatives/quotes_ETHF0:USTF0_20250503
["timestamp","ask_amount","ask_price","bid_price","bid_amount"]
[1746298041769,1.09529,1825.6,1825.5,1.0953]
[1746298042069,1.09525,1825.6,1825.5,2.77036]
[1746298042271,1.09525,1825.6,1825.5,6.48836]
[1746298042972,1.09525,1825.6,1825.5,5.3931]
[1746298043280,1.09525,1825.6,1825.5,2.77041]
[1746298044077,1.09525,1825.6,1825.5,6.48841]
[1746298045478,2.81575,1825.7,1825.6,1.09525]
[1746298045679,2.81575,1825.7,1825.6,3.56505]
[1746298045874,1.09525,1825.7,1825.6,3.56505]
[1746298046873,1.09525,1825.7,1825.6,2.4698]
[1746298047277,2.70245,1825.7,1825.6,2.4698]
[1746298048777,2.70245,1825.7,1825.6,3.56505]
[1746298050279,2.70245,1825.7,1825.6,2.4698]
[1746298053882,2.70245,1825.7,1825.6,3.56505]
[1746298060885,1.6619,1825.8,1825.7,1.09519]
[1746298061082,5.40286876,1825.9,1825.8,1.09513]
[1746298061481,3.65816876,1825.9,1825.8,2.84153]
[1746298061786,3.65816876,1825.9,1825.8,12.22453]
[1746298061988,3.65816876,1825.9,1825.8,15.43233]
[1746298062191,3.65816876,1825.9,1825.8,19.15033]
[1746298062780,7.30705336,1826.2,1826.1,1.09495]
[1746298063091,9.11666834,1826.3,1826.2,1.09489]
[1746298063293,9.11666834,1826.3,1826.2,9.62519]
[1746298064185,9.11666834,1826.3,1826.2,13.34319]
[1746298064991,9.11666834,1826.3,1826.2,18.34319]
[1746298065191,7.89896834,1826.3,1826.2,13.34319]
[1746298065392,21.31431893,1826.5,1826.4,1.09477]
[1746298065593,21.31431893,1826.5,1826.4,7.79157]
[1746298066187,21.31431893,1826.5,1826.4,13.96627]
[1746298066394,2.79764,1826.8,1826.6,1.09459]
[1746298066595,2.79764,1826.8,1826.7,1.6439]
[1746298070596,2.79764,1826.8,1826.7,2.73849]
[1746298071100,1.09477,1826.4,1826.3,5.912]
[1746298071390,3.2078,1826.6,1826.2,3.2078]
[1746298071697,1.09481,1826.4,1826.3,1.09482]
[1746298071890,1.09481,1826.4,1826.3,2.77332]
[1746298072091,1.09481,1826.4,1826.3,3.718]
[1746298076100,1.09481,1826.4,1826.3,1.09483]
[1746298076300,1.09483,1826.3,1826.2,9.44355]
[1746298076500,1.09483,1826.3,1826.2,6.6968]
[1746298077501,1.09483,1826.3,1826.2,7.79169]
[1746298077692,1.9314,1826.4,1826.3,1.09483]
[1746298078197,1.9314,1826.4,1826.3,6.40373]
[1746298080504,1.9314,1826.4,1826.3,5.3089]
[1746298080705,1.9314,1826.4,1826.3,3.718]
[1746298081302,1.09483,1826.3,1826.2,6.6968]
[1746298082205,1.09495,1826.1,1826.0,9.1198]
[1746298082398,1.09501,1826.0,1825.9,3.51545]
[1746298082600,1.09501,1826.0,1825.9,4.61052]
[1746298084203,2.7916,1826.1,1826.0,1.09501]
[1746298084503,1.09499,1826.1,1826.0,1.09495]
[1746298084696,1.09499,1826.1,1826.0,2.78235]
[1746298085298,2.79153,1826.2,1826.1,1.09495]
[1746298085702,1.09495,1826.1,1826.0,4.44438]
[1746298086101,1.09495,1826.1,1826.0,8.16238]
[1746298086607,2.79154,1826.2,1826.1,1.09495]
[1746298087606,1.09495,1826.1,1826.0,4.44436]
[1746298088308,1.09495,1826.1,1826.0,8.16236]
[1746298088799,2.78355,1826.1,1826.0,8.16236]
[1746298093912,1.09495,1826.1,1826.0,8.16236]
[1746298094114,1.09493,1826.2,1826.1,1.09495]
[1746298094416,1.09493,1826.2,1826.1,2.74635]
[1746298094715,1.09493,1826.2,1826.1,1.6514]
[1746298095009,1.09478,1826.4,1826.3,1.09479]
[1746298095207,4.30255,1826.5,1826.4,1.09477]
[1746298095807,4.3499,1826.6,1826.5,1.09471]
[1746298096018,1.09472,1826.5,1826.4,1.09473]
[1746298096205,1.09472,1826.5,1826.4,4.81273]
[1746298099124,1.09472,1826.5,1826.4,1.09473]
[1746298100820,2.7348,1826.6,1826.5,1.09471]
[1746298102418,1.0947,1826.6,1826.5,1.09471]
[1746298103421,1.09473,1826.5,1826.4,1.09472]
[1746298103613,1.0947,1826.6,1826.5,1.09471]
[1746298107322,2.76043,1826.7,1826.6,1.09465]
[1746298108822,1.09459,1826.7,1826.6,1.09465]
[1746298109322,1.09459,1826.7,1826.6,2.72785]
[1746298109921,3.2883,1826.8,1826.7,1.09459]
[1746298109922,4.38287,1826.8,1826.7,1.09459]
[1746298110132,2.71587,1826.8,1826.7,2.77449]
[1746298115231,2.71587,1826.8,1826.7,1.6799]
[1746298116924,2.71587,1826.8,1826.7,2.77449]
[1746298119221,1.09451,1826.9,1826.8,1.09453]
[1746298119420,1.09451,1826.9,1826.8,2.84073]
[1746298121328,2.74311,1826.9,1826.8,2.84073]
[1746298123830,1.09453,1826.8,1826.7,1.09455]
[1746298124133,2.72303,1826.8,1826.7,1.09455]
[1746298124329,3.59943,1826.8,1826.7,1.09455]
[1746298124529,3.59943,1826.8,1826.7,2.82385]
[1746298124930,2.5049,1826.8,1826.7,2.82385]
[1746298126632,1.6285,1826.8,1826.7,2.82385]
[1746298130428,1.6285,1826.8,1826.2,7.26716439]
[1746298130429,9.8363,1826.8,1826.2,7.26716439]
[1746298130631,3.2078,1826.3,1826.2,8.36205439]
[1746298130834,1.09482,1826.4,1826.2,8.36205439]
[1746298131038,1.09482,1826.4,1826.2,11.67075439]
[1746298131236,2.84412,1826.4,1826.2,11.67075439]
[1746298131421,0.43567162,1826.3,1826.2,11.67075439]
[1746298131627,1.53050162,1826.3,1826.2,11.67075439]
[1746298131828,3.27980162,1826.3,1826.2,11.67075439]
[1746298132034,3.27980137,1826.3,1826.2,11.67075439]
[1746298133837,3.27952381,1826.3,1826.2,11.67075439]
[1746298136537,3.27952381,1826.3,1826.2,7.26716439]
[1746298137438,3.27911284,1826.3,1826.2,7.26716439]
[1746298138442,3.27911284,1826.3,1826.2,8.36205439]
[1746298139241,3.27895819,1826.3,1826.2,8.36205439]
[1746298140443,3.27895819,1826.3,1826.2,1.09489]
[1746298140641,1.09489,1826.2,1826.1,5.183]
[1746298140940,2.75929,1826.2,1826.1,3.487]
[1746298141239,1.6644,1826.2,1826.1,1.09495]
[1746298141542,1.09495,1826.1,1826.0,2.81667]
[1746298144846,2.7593,1826.2,1826.1,1.09495]
[1746298145046,2.7593,1826.2,1826.1,3.56895]
[1746298145752,1.09487,1826.3,1826.2,1.09489]
[1746298146050,5.9329,1826.4,1826.3,1.09483]
[1746298146251,5.9329,1826.4,1826.3,1.95703]
[1746298146649,5.46122687,1826.5,1826.4,1.09477]
[1746298146847,5.46122687,1826.5,1826.4,3.65437]
[1746298147459,9.82462687,1826.6,1826.4,3.65437]
[1746298148065,1.09471,1826.5,1826.4,3.65437]
[1746298148864,9.82460687,1826.6,1826.5,1.09471]
[1746298149162,10.25891082,1826.6,1826.5,2.74851]
[1746298149963,8.62051082,1826.6,1826.5,2.74851]
[1746298150264,8.62055557,1826.6,1826.5,2.74851]
[1746298150865,8.62059658,1826.6,1826.5,2.74851]
[1746298151056,3.15936971,1826.6,1826.5,2.74851]
[1746298152670,3.15952166,1826.6,1826.5,2.74851]
[1746298156271,3.15986172,1826.6,1826.5,2.74851]
[1746298159973,3.16027133,1826.6,1826.5,2.74851]
[1746298161676,3.16043241,1826.6,1826.5,2.74851]
[1746298167080,3.16042898,1826.6,1826.5,2.74851]
[1746298168879,3.16049368,1826.6,1826.5,2.74851]
[1746298172579,3.16066138,1826.6,1826.5,2.74851]
[1746298175384,0.43568138,1826.6,1826.5,2.74851]
[1746298176081,5.97998,1826.8,1826.7,1.09459]
[1746298176282,6.41620673,1826.8,1826.7,1.09459]
[1746298176782,6.41620673,1826.8,1826.7,3.64479]
[1746298177884,6.41604026,1826.8,1826.7,3.64479]
[1746298179081,3.20824026,1826.8,1826.7,3.64479]
[1746298179383,6.41604026,1826.8,1826.7,3.64479]
[1746298181487,6.41588757,1826.8,1826.7,3.64479]
[1746298183288,3.20805501,1826.8,1826.7,3.64479]
[1746298183490,3.20804758,1826.8,1826.7,3.64479]
[1746298188694,3.20791008,1826.8,1826.7,3.64479]
[1746298188896,3.20790766,1826.8,1826.7,3.64479]
[1746298191598,0.43572766,1826.8,1826.7,3.64479]
[1746298192199,1.53025766,1826.8,1826.7,3.64479]
[1746298192392,1.53022763,1826.8,1826.7,3.64479]
[1746298192995,3.22292763,1826.8,1826.7,3.64479]
[1746298196092,3.22295855,1826.8,1826.7,3.64479]
[1746298197802,3.22300756,1826.8,1826.7,3.64479]
[1746298199500,3.22308426,1826.8,1826.7,3.64479]
[1746298201002,3.22311796,1826.8,1826.7,3.64479]
[1746298202099,2.12858796,1826.8,1826.7,3.64479]
[1746298202300,3.22311796,1826.8,1826.7,3.64479]
[1746298202500,3.22324685,1826.8,1826.7,3.64479]
[1746298204106,2.12871685,1826.8,1826.7,3.64479]
[1746298204308,1.09448,1826.9,1826.8,1.09453]
[1746298204509,1.53060641,1826.9,1826.8,2.84043]
[1746298206408,3.21380641,1826.9,1826.8,2.84043]
[1746298207207,1.09453,1826.8,1826.7,4.56859]
[1746298207508,4.06015641,1826.8,1826.7,4.56859]
[1746298207713,11.17342641,1826.8,1826.5,5.912]
[1746298207910,4.30245,1826.6,1826.5,5.912]
[1746298208211,4.73874537,1826.6,1826.5,5.912]
[1746298208510,6.43804537,1826.6,1826.5,5.912]
[1746298208811,1.09471,1826.5,1826.4,8.36189439]
[1746298209011,4.09550537,1826.5,1826.4,8.36189439]
[1746298209611,4.09510956,1826.5,1826.4,8.36189439]
[1746298210710,4.09510956,1826.5,1826.4,1.09473]
[1746298211005,3.00039956,1826.5,1826.4,1.09473]
[1746298211211,2.13519956,1826.5,1826.4,1.09473]
[1746298211407,2.13499613,1826.5,1826.4,2.75923]
[1746298211709,0.43569613,1826.5,1826.4,2.75923]
[1746298211901,0.43569613,1826.5,1826.4,3.55883]
[1746298212201,0.43569613,1826.5,1826.4,7.27683]
[1746298213108,0.43569613,1826.5,1826.4,3.55883]
[1746298214413,2.84397,1826.6,1826.4,3.55883]
[1746298214414,3.65365129,1826.7,1826.6,1.09465]
[1746298214614,4.08919455,1826.7,1826.6,1.09465]
[1746298214910,3.65365129,1826.7,1826.6,1.09465]
[1746298215111,3.65365129,1826.7,1826.6,3.54275]
[1746298216108,5.18375439,1826.7,1826.6,7.01675]
[1746298216309,6.79565439,1826.7,1826.6,6.16205]
[1746298216511,4.7856031,1826.7,1826.6,6.16205]
[1746298216710,4.78564909,1826.7,1826.6,6.16205]
[1746298217009,4.78564909,1826.7,1826.6,3.474]
[1746298217510,7.99344909,1826.7,1826.6,3.474]
[1746298218110,11.71144909,1826.7,1826.6,3.474]
[1746298218913,15.36510038,1826.7,1826.6,3.474]
[1746298219216,11.64710038,1826.7,1826.6,3.474]
[1746298222218,11.64701449,1826.7,1826.6,3.474]
[1746298223915,11.64698677,1826.7,1826.6,3.474]
[1746298224814,1.09465,1826.6,1826.5,2.76721]
[1746298225012,3.16639548,1826.6,1826.5,2.76721]
[1746298225814,3.16639439,1826.6,1826.5,2.76721]
[1746298226914,0.43544439,1826.6,1826.5,2.76721]
[1746298227310,4.74830129,1826.7,1826.6,1.09465]
[1746298227505,5.1837137,1826.7,1826.6,4.43685]
[1746298227915,6.8757137,1826.7,1826.6,4.43685]
[1746298228109,6.8757137,1826.7,1826.6,3.3422]
[1746298228310,10.5937137,1826.7,1826.6,3.3422]
[1746298228718,10.59376412,1826.7,1826.6,3.3422]
[1746298229119,6.94011283,1826.7,1826.6,3.3422]
[1746298229315,6.94012771,1826.7,1826.6,3.3422]
[1746298230020,10.14792771,1826.7,1826.6,3.3422]
[1746298231217,10.14795841,1826.7,1826.6,3.3422]
[1746298234123,6.42995841,1826.7,1826.6,3.3422]
[1746298234724,6.43013513,1826.7,1826.6,3.3422]
[1746298235315,6.43019445,1826.7,1826.6,3.3422]
[1746298235520,6.43019438,1826.7,1826.6,3.3422]
[1746298235714,6.43019451,1826.7,1826.6,3.3422]
[1746298235921,6.43019692,1826.7,1826.6,3.3422]
[1746298236219,10.14819692,1826.7,1826.6,3.3422]
[1746298238221,6.43019692,1826.7,1826.6,3.3422]
[1746298240120,3.64354692,1826.7,1826.6,4.43685]
[1746298240317,0.43574692,1826.7,1826.6,4.43685]
[1746298241618,3.65365129,1826.8,1826.7,1.09459]
[1746298241924,4.08943519,1826.8,1826.7,2.74759]
[1746298242315,4.08943519,1826.8,1826.6,10.7611]
[1746298242512,1.53025625,1826.7,1826.6,5.912]
[1746298242716,7.18885625,1826.7,1826.6,5.912]
[1746298243118,10.90685625,1826.7,1826.6,5.912]
[1746298243421,1.09477,1826.4,1826.3,3.471]
[1746298243726,1.53056528,1826.4,1826.3,3.471]
[1746298244023,1.09483,1826.3,1826.2,1.09488]
[1746298244218,4.05652528,1826.3,1826.2,1.09488]
[1746298245322,1.09489,1826.2,1826.1,15.17746439]
[1746298245524,1.53068528,1826.2,1826.1,15.17746439]
[1746298246725,0.43579528,1826.2,1826.1,15.17746439]
[1746298247325,0.43566285,1826.2,1826.1,15.17746439]
[1746298247827,0.43566285,1826.2,1826.1,7.9103]
[1746298248525,1.53055285,1826.2,1826.1,6.8154]
[1746298248727,4.10935285,1826.2,1826.1,4.2907]
[1746298249116,4.10935285,1826.2,1826.1,5.38565]
[1746298250528,1.93768,1826.3,1826.2,1.09489]
[1746298250731,2.37300914,1826.3,1826.2,3.61969]
[1746298250931,2.37299661,1826.3,1826.2,3.61969]
[1746298252624,1.09488,1826.3,1826.2,3.61969]
[1746298252825,1.5301536,1826.3,1826.2,3.61969]
[1746298254630,1.53011861,1826.3,1826.2,3.61969]
[1746298256229,2.68788,1826.3,1826.2,3.61969]
[1746298256431,3.12311383,1826.3,1826.2,3.61969]
[1746298259936,3.12311537,1826.3,1826.2,3.61969]
[1746298260830,1.09489,1826.2,1826.1,3.471]
[1746298261036,1.09507,1825.9,1825.8,11.60886439]
[1746298261228,1.09507,1825.9,1825.8,14.08616439]
[1746298261633,4.7381879,1825.9,1825.8,7.26716439]
[1746298261934,9.7380869,1825.9,1825.8,7.26716439]
[1746298262132,13.45609263,1825.9,1825.8,7.26716439]
[1746298262436,13.45608817,1825.9,1825.8,7.26716439]
[1746298262732,13.45611738,1825.9,1825.8,4.89659439]
[1746298263130,13.45616925,1825.9,1825.8,4.89659439]
[1746298263332,1.09525,1825.6,1825.5,4.89659439]
[1746298263531,1.53054023,1825.6,1825.5,4.89659439]
[1746298263739,1.53051237,1825.6,1825.5,4.89659439]
[1746298263931,3.18391237,1825.6,1825.5,4.89659439]
[1746298264131,6.90191237,1825.6,1825.5,4.89659439]
[1746298265238,3.18391237,1825.6,1825.5,4.89659439]
[1746298266338,3.18295587,1825.6,1825.5,4.89659439]
[1746298267644,3.18295587,1825.6,1825.4,0.02966]
[1746298267645,1.09531,1825.5,1825.4,0.02966]
[1746298267841,2.80271,1825.5,1825.4,0.02966]
[1746298273043,6.44401229,1825.5,1825.4,0.02966]
[1746298274244,1.09555,1825.1,1825.0,1.6692]
[1746298274842,3.65495,1825.1,1825.0,1.6692]
[1746298275253,1.09561,1825.0,1824.9,5.0977]
[1746298275454,2.82751,1825.0,1824.9,5.0977]
[1746298276050,2.82751,1825.0,1824.9,1.6237]
[1746298276346,2.82751,1825.0,1824.8,1.6704]
[1746298276347,1.09567,1824.9,1824.8,1.6704]
[1746298276557,2.82757,1824.9,1824.8,3.2941]
[1746298279150,2.82757,1824.9,1824.8,4.38983]
[1746298281156,2.82757,1824.9,1824.8,8.10783]
[1746298282158,2.82757,1824.9,1824.8,4.38983]
[1746298282657,1.09567,1824.9,1824.8,4.38983]
[1746298283356,1.09567,1824.9,1824.8,8.10783]
[1746298284558,1.09567,1824.9,1824.8,7.0121]
[1746298285157,1.09567,1824.9,1824.8,3.2941]
[1746298285558,1.09567,1824.9,1824.8,4.38983]
[1746298286157,1.09567,1824.9,1824.8,8.10783]
[1746298289350,1.09567,1824.9,1824.8,7.0121]
[1746298290160,1.53086896,1824.9,1824.8,7.0121]
[1746298291063,1.53090784,1824.9,1824.8,7.0121]
[1746298291261,1.53091171,1824.9,1824.8,7.0121]
[1746298292166,1.53091171,1824.9,1824.8,3.2941]
[1746298292962,1.53129132,1824.9,1824.8,3.2941]
[1746298293362,1.53129132,1824.9,1824.8,1.6237]
[1746298293566,1.09579,1824.7,1824.6,5.1467]
[1746298293861,1.53141132,1824.7,1824.6,7.86265]
[1746298294064,1.09578,1824.8,1824.7,1.09577]
[1746298294261,1.53142891,1824.8,1824.7,1.09577]
[1746298294765,1.53144074,1824.8,1824.7,1.09577]
[1746298295063,1.09579,1824.7,1824.6,6.2425]
[1746298295763,1.53151264,1824.7,1824.6,6.2425]
[1746298298466,1.53173245,1824.7,1824.6,6.2425]
[1746298299460,0.43594245,1824.7,1824.6,6.2425]
[1746298301370,1.09578,1824.8,1824.7,1.09579]
[1746298301559,1.53205046,1824.8,1824.7,1.09579]
[1746298302065,1.53205046,1824.8,1824.7,4.81379]
[1746298302265,1.53205046,1824.8,1824.7,3.718]
[1746298302763,1.53205046,1824.8,1824.7,4.81379]
[1746298303871,1.53241604,1824.8,1824.7,4.81379]
[1746298305573,1.53247184,1824.8,1824.7,4.81379]
[1746298309177,1.53242853,1824.8,1824.7,4.81379]
[1746298309680,1.53242853,1824.8,1824.7,6.39479]
[1746298311077,1.53244273,1824.8,1824.7,6.39479]
[1746298311876,1.53244273,1824.8,1824.7,5.299]
[1746298312293,3.19374273,1824.8,1824.7,5.299]
[1746298313299,3.99834273,1824.8,1824.7,5.299]
[1746298313803,3.99834273,1824.8,1824.7,3.718]
[1746298314303,1.09579,1824.7,1824.6,5.1467]
[1746298314495,3.24805273,1824.7,1824.6,5.1467]
[1746298316500,3.24786294,1824.7,1824.6,5.1467]
[1746298317707,3.24786294,1824.7,1824.6,6.24255]
[1746298317894,3.24786294,1824.7,1824.6,5.1467]
[1746298318094,3.24789459,1824.7,1824.6,5.1467]
[1746298319906,3.24793979,1824.7,1824.6,5.1467]
[1746298321507,3.24793979,1824.7,1824.6,6.24255]
[1746298321703,3.24793979,1824.7,1824.5,4.8665]
[1746298321704,1.09585,1824.6,1824.5,3.2078]
[1746298321900,1.09597,1824.4,1824.3,7.6329]
[1746298322099,1.53251979,1824.4,1824.3,11.3509]
[1746298322508,1.53251979,1824.4,1824.3,22.25164659]
[1746298322810,1.09588,1824.6,1824.5,1.09591]
[1746298323006,1.53221989,1824.6,1824.5,4.30371]
[1746298323303,0.43633989,1824.6,1824.5,11.49571]
[1746298323507,4.74941129,1824.8,1824.7,1.09579]
[1746298323801,4.09002751,1824.8,1824.7,1.09579]
[1746298324009,3.65365129,1824.8,1824.7,4.30359]
[1746298324209,3.65365129,1824.8,1824.7,9.67469]
[1746298326814,1.09565,1825.0,1824.9,1.09567]
[1746298327108,1.53173185,1825.0,1824.9,3.718]
[1746298327306,1.53173185,1825.0,1824.9,4.81367]
[1746298327507,4.74918129,1825.2,1825.0,1.09561]
[1746298327807,0.43602187,1825.1,1825.0,2.80181]
[1746298328103,4.74918129,1825.2,1825.0,6.51981]
[1746298328304,4.74918129,1825.2,1825.1,1.7062]
[1746298328507,5.18521958,1825.2,1825.1,1.7062]
[1746298328709,6.86021958,1825.2,1825.1,1.7062]
[1746298329611,6.86021958,1825.2,1825.1,2.80175]
[1746298331210,6.86021958,1825.2,1825.1,1.7062]
[1746298331408,3.20656829,1825.2,1825.1,1.7062]
[1746298331612,3.20656829,1825.2,1825.1,2.80175]
[1746298331810,3.20613322,1825.2,1825.1,2.80175]
[1746298332906,2.11060322,1825.2,1825.1,2.80175]
[1746298333113,13.18791982,1825.4,1825.1,1.7062]
[1746298333413,3.65365129,1825.4,1825.3,4.30323]
[1746298333812,3.65365129,1825.4,1825.3,5.94513]
[1746298334311,3.65365129,1825.4,1825.3,9.66313]
[1746298337010,1.09527,1825.6,1825.5,1.09531]
[1746298337206,1.7152,1825.7,1825.6,1.09525]
[1746298337408,1.7152,1825.7,1825.6,3.57845]
[1746298340014,5.30915129,1825.9,1825.7,1.09519]
[1746298340212,7.03075129,1825.9,1825.7,1.7209]
[1746298340405,7.03075129,1825.9,1825.8,0.8705]
[1746298340612,1.7216,1825.9,1825.8,0.8705]
[1746298341113,2.8167,1825.9,1825.8,1.96563]
[1746298342314,1.09513,1825.8,1825.7,2.81607]
[1746298342508,2.69933,1825.8,1825.7,2.81607]
[1746298343212,1.6042,1825.8,1825.7,2.81607]
[1746298343808,1.93714,1826.0,1825.9,1.09507]
[1746298343809,0.8421,1826.0,1825.9,1.09507]
[1746298344005,2.4463,1826.0,1825.9,1.09507]
[1746298344210,3.54131,1826.0,1825.9,1.09507]
[1746298346822,2.4463,1826.0,1825.9,1.09507]
[1746298347818,3.54131,1826.0,1825.9,1.09507]
[1746298349618,1.09507,1825.9,1825.8,2.7803]
[1746298349809,2.82667,1825.9,1825.8,2.7803]
[1746298350311,1.7316,1825.9,1825.8,2.7803]
[1746298351323,3.65365129,1826.5,1826.3,1.0948]
[1746298351523,1.23549134,1826.4,1826.3,1.0948]
[1746298351715,2.70219,1826.4,1826.3,1.0948]
[1746298351916,6.34369144,1826.4,1826.3,1.0948]
[1746298352219,1.09483,1826.3,1826.2,1.09484]
[1746298352613,2.75473,1826.3,1826.2,1.09484]
[1746298353322,1.6599,1826.3,1826.2,1.09484]
[1746298354224,2.75473,1826.3,1826.2,1.09484]
[1746298356524,3.18894108,1826.3,1826.2,1.09484]
[1746298356823,3.18894386,1826.3,1826.2,1.09484]
[1746298357023,2.75473,1826.3,1826.2,1.09484]
[1746298357326,3.18893367,1826.3,1826.2,1.09484]
[1746298358523,3.18911419,1826.3,1826.2,1.09484]
[1746298358824,2.09428419,1826.3,1826.2,1.09484]
[1746298359026,1.6599,1826.3,1826.2,2.77694]
[1746298359324,1.6599,1826.3,1826.2,3.58504]
[1746298359730,5.91002,1826.4,1826.3,1.09483]
[1746298359934,6.34446346,1826.4,1826.3,2.73933]
[1746298360425,5.91002,1826.4,1826.3,2.73933]
[1746298361513,6.34474284,1826.4,1826.3,2.73933]
[1746298361718,6.34474284,1826.4,1826.3,1.09483]
[1746298363728,6.34499412,1826.4,1826.3,1.09483]
[1746298365315,5.91002,1826.4,1826.3,1.09483]
[1746298365821,6.34505637,1826.4,1826.3,1.09483]
[1746298366019,2.70222,1826.4,1826.3,1.09483]
[1746298366428,3.13724007,1826.4,1826.3,1.09483]
[1746298366723,2.04242007,1826.4,1826.3,1.09483]
[1746298366928,0.43502007,1826.4,1826.3,2.71723]
[1746298367224,2.68286,1826.5,1826.4,1.09477]
[1746298367429,2.68286,1826.5,1826.4,3.58157]
[1746298368628,3.11796708,1826.5,1826.4,3.58157]
[1746298368929,2.68286,1826.5,1826.4,3.58157]
[1746298369134,3.1179671,1826.5,1826.4,3.58157]
[1746298370532,3.11787281,1826.5,1826.4,3.58157]
[1746298373829,2.73694,1826.4,1826.1,3.2078]
[1746298374023,1.09492,1826.2,1826.1,1.09492]
[1746298374228,1.09499,1826.1,1826.0,1.095]
[1746298374428,3.12364042,1826.1,1826.0,1.095]
[1746298374629,3.12366449,1826.1,1826.0,1.095]
[1746298374830,3.12366547,1826.1,1826.0,1.095]
[1746298375031,3.12366497,1826.1,1826.0,1.095]
[1746298375636,3.12370791,1826.1,1826.0,1.095]
[1746298377535,3.1237967,1826.1,1826.0,1.095]
[1746298377737,1.09501,1826.0,1825.9,6.05272]
[1746298378037,4.0270167,1826.0,1825.9,6.05272]
[1746298379539,4.0270167,1826.0,1825.9,4.9577]
[1746298380140,7.2348167,1826.0,1825.9,1.7499]
[1746298380343,4.0270167,1826.0,1825.9,1.7499]
[1746298380640,1.09507,1825.9,1825.8,4.56511]
[1746298380836,9.57582633,1825.9,1825.0,18.00532878]
[1746298381045,1.09541,1825.4,1825.2,4.41975]
[1746298381336,1.09541,1825.4,1825.3,1.6594]
[1746298381543,1.53113679,1825.4,1825.3,2.75483]
[1746298381842,1.09541,1825.4,1825.3,2.75483]
[1746298382538,1.09541,1825.4,1825.3,1.6594]
[1746298382729,2.73721,1825.4,1825.3,1.6594]
[1746298383137,2.73721,1825.4,1825.3,2.75483]
[1746298383545,2.73721,1825.4,1825.3,1.6594]
[1746298383840,2.73721,1825.4,1825.3,2.75483]
[1746298385141,1.6418,1825.4,1825.3,2.75483]
[1746298385741,2.73717,1825.4,1825.3,2.75483]
[1746298386335,2.73717,1825.4,1825.2,1.6649]
[1746298386336,1.09545,1825.3,1825.2,1.09548]
[1746298386538,1.09545,1825.3,1825.2,2.70528]
[1746298386842,2.73721,1825.4,1825.3,1.09543]
[1746298387038,2.73721,1825.4,1825.3,2.67873]
[1746298387951,2.73721,1825.4,1825.3,1.5833]
[1746298388249,1.6418,1825.4,1825.1,2.77533]
[1746298388442,1.09549,1825.2,1825.0,7.77436]
[1746298388637,1.09549,1825.2,1825.0,9.9584]
[1746298388838,2.73069,1825.2,1825.1,1.09555]
[1746298396354,2.73069,1825.2,1825.1,2.81555]
[1746298400367,1.0954,1825.4,1825.3,1.09543]
[1746298400969,1.0954,1825.4,1825.3,2.82853]
[1746298403868,1.0954,1825.4,1825.3,1.7331]
[1746298404063,2.8231,1825.4,1825.3,1.7331]
[1746298404367,1.09537,1825.4,1825.3,2.82848]
[1746298404556,1.09537,1825.4,1825.3,4.42998]
[1746298405067,1.09537,1825.4,1825.3,8.14798]
[1746298405369,1.53027957,1825.4,1825.3,8.14798]
[1746298406568,1.53046637,1825.4,1825.3,8.14798]
[1746298407168,0.43509637,1825.4,1825.3,4.42998]
[1746298407561,1.53046637,1825.4,1825.3,4.42998]
[1746298407763,3.22596637,1825.4,1825.3,4.42998]
[1746298408370,3.22664771,1825.4,1825.3,4.42998]
[1746298411973,3.22729156,1825.4,1825.3,4.42998]
[1746298412471,3.22729156,1825.4,1825.3,3.3346]
[1746298413778,3.22731136,1825.4,1825.3,3.3346]
[1746298413969,3.22731136,1825.4,1825.3,4.43003]
[1746298417377,3.22745516,1825.4,1825.3,4.43003]
[1746298418379,3.22745516,1825.4,1825.3,3.3346]
[1746298420878,3.22748993,1825.4,1825.3,3.3346]
[1746298422780,3.22744857,1825.4,1825.3,3.3346]
[1746298424675,3.22748876,1825.4,1825.3,3.3346]
[1746298425980,3.22749652,1825.4,1825.3,3.3346]
[1746298426276,2.79087,1825.4,1825.3,3.3346]
[1746298426482,3.22750288,1825.4,1825.3,3.3346]
[1746298426783,6.88115417,1825.4,1825.3,3.3346]
[1746298428086,6.44452129,1825.4,1825.3,3.3346]
[1746298428382,6.88113455,1825.4,1825.3,3.3346]
[1746298429085,6.44452129,1825.4,1825.3,3.3346]
[1746298429286,6.88114417,1825.4,1825.3,3.3346]
[1746298430589,6.44452129,1825.4,1825.3,3.3346]
[1746298430888,11.90574816,1825.4,1825.3,3.3346]
[1746298431288,15.11354816,1825.4,1825.3,3.3346]
[1746298431490,15.55019027,1825.4,1825.3,3.3346]
[1746298432390,15.11354816,1825.4,1825.3,3.3346]
[1746298432583,15.55020972,1825.4,1825.3,3.3346]
[1746298433591,11.89655843,1825.4,1825.3,3.3346]
[1746298434389,8.68875843,1825.4,1825.3,3.3346]
[1746298434591,11.89655843,1825.4,1825.3,3.3346]
[1746298434991,11.89658962,1825.4,1825.3,3.3346]
[1746298436793,11.89662549,1825.4,1825.3,3.3346]
[1746298437092,1.09543,1825.3,1825.2,1.09544]
[1746298437288,3.18335862,1825.3,1825.2,1.09544]
[1746298437692,3.18335862,1825.3,1825.2,2.472]
[1746298437993,4.05365862,1825.3,1825.2,2.472]
[1746298438590,4.86631313,1825.3,1825.2,1.6148]
[1746298438992,1.09549,1825.2,1825.1,2.79112]
[1746298439183,6.37637313,1825.2,1825.1,3.3431]
[1746298439383,1.09555,1825.1,1825.0,7.30583317]
[1746298439693,3.16863313,1825.1,1825.0,7.30583317]
[1746298440196,3.16863313,1825.1,1824.9,7.30583317]
[1746298440197,1.09561,1825.0,1824.9,7.30583317]
[1746298440391,4.8998524,1825.0,1824.9,7.30583317]
[1746298441292,11.8256524,1825.0,1824.9,7.30583317]
[1746298441587,11.82559925,1825.0,1824.9,7.30583317]
[1746298441797,11.82560064,1825.0,1824.9,7.30583317]
[1746298443290,8.10669937,1825.0,1824.9,8.40150317]
[1746298443494,8.10669937,1825.0,1824.9,7.30583317]
[1746298443791,8.10669937,1825.0,1824.9,8.94763317]